fUSD/lending_fUSD_20241221
["ID","MTS","AMOUNT","RATE_DAILY","PERIOD"]
[346224323,1734779450430,-500.0,0.00019726,2]
[346224324,1734779450440,-504.61405868,0.00019726,2]
[346224325,1734779450449,-500.0,0.00019726,2]
[346224326,1734779450460,-500.0,0.00019726,2]
[346224327,1734779450470,-500.0,0.00019726,2]
[346224328,1734779450480,-500.0,0.00019726,2]
[346224329,1734779450489,-641.8715358,0.00019726,2]
[346224330,1734779450499,-500.0,0.00019726,2]
[346224331,1734779450509,-592.01,0.00019726,2]
[346224332,1734779450518,-500.0,0.00019726,2]
[346224333,1734779450528,-500.0,0.00019726,2]
[346224334,1734779450539,-500.0,0.00019726,2]
[346224335,1734779450548,-500.0,0.00019726,2]
[346224336,1734779450558,-500.0,0.00019726,2]
[346224337,1734779450567,-500.0,0.00019726,2]
[346224338,1734779450577,-731.09,0.00019726,2]
[346224339,1734779450588,-500.0,0.00019726,2]
[346224340,1734779450598,-272.63154759,0.00019726,2]
[346224341,1734779450608,-500.0,0.00019726,2]
[346224342,1734779450617,-500.0,0.00019726,2]
[346224343,1734779450627,-500.0,0.00019726,2]
[346224344,1734779450637,-500.0,0.00019726,2]
[346224345,1734779450647,-500.0,0.00019726,2]
[346224346,1734779450657,-500.0,0.00019726,2]
[346224347,1734779450666,-510.2,0.00019726,2]
[346224348,1734779450676,-2142.82452,0.00019726,2]
[346224349,1734779450686,-500.0,0.00019726,2]
[346224350,1734779450695,-500.0,0.00019726,2]
[346224351,1734779450705,-642.19,0.00019726,2]
[346224352,1734779450715,-500.0,0.00019726,2]
[346224353,1734779450724,-500.0,0.00019726,2]
[346224354,1734779450733,-1256.290169,0.00019726,2]
[346224355,1734779450743,-500.0,0.00019726,2]
[346224356,1734779450752,-500.0,0.00019726,2]
[346224357,1734779450761,-747.54,0.00019726,2]
[346224358,1734779450770,-500.0,0.00019726,2]
[346224359,1734779450780,-500.0,0.00019726,2]
[346224360,1734779450789,-500.0,0.00019726,2]
[346224361,1734779450799,-500.0,0.00019726,2]
[346224362,1734779450808,-825.03,0.00019726,2]
[346224363,1734779450818,-500.0,0.00019726,2]
[346224364,1734779450828,-500.0,0.00019726,2]
[346224365,1734779450838,-500.0,0.00019726,2]
[346224366,1734779450847,-500.0,0.00019726,2]
[346224367,1734779450857,-596.49,0.00019726,2]
[346224368,1734779450866,-500.0,0.00019726,2]
[346224369,1734779450877,-500.0,0.00019726,2]
[346224370,1734779450886,-500.0,0.00019726,2]
[346224371,1734779450896,-500.0,0.00019726,2]
[346224372,1734779450907,-500.0,0.00019726,2]
[346224373,1734779450917,-766.37,0.00019726,2]
[346224374,1734779450928,-500.0,0.00019726,2]
[346224375,1734779450938,-1431.84,0.00019726,2]
[346224376,1734779450951,-669.1,0.00019726,2]
[346224377,1734779450960,-1283.6,0.00019726,2]
[346224378,1734779450970,-500.0,0.00019726,2]
[346224379,1734779450979,-500.0,0.00019726,2]
[346224380,1734779450989,-843.86,0.00019726,2]
[346224381,1734779450998,-500.0,0.00019726,2]
[346224382,1734779451008,-500.0,0.00019726,2]
[346224383,1734779451018,-3282.84,0.00019726,2]
[346224384,1734779451028,-500.0,0.00019726,2]
[346224385,1734779451038,-500.0,0.00019726,2]
[346224386,1734779451048,-500.0,0.00019726,2]
[346224387,1734779451058,-605.13,0.00019726,2]
[346224388,1734779451068,-1278.07,0.00019726,2]
[346224389,1734779451077,-500.0,0.00019726,2]
[346224390,1734779451087,-500.0,0.00019726,2]
[346224391,1734779451096,-908.8,0.00019726,2]
[346224392,1734779451106,-6866.93,0.00019726,2]
[346224393,1734779451116,-500.0,0.00019726,2]
[346224394,1734779451126,-2190.77,0.00019726,2]
[346224395,1734779451136,-892.92,0.00019726,2]
[346224396,1734779451146,-634.19,0.00019726,2]
[346224397,1734779451156,-556.57,0.00019726,2]
[346224398,1734779451166,-1248.6,0.00019726,2]
[346224399,1734779451179,-500.0,0.00019726,2]
[346224400,1734779451189,-626.79,0.00019726,2]
[346224401,1734779451200,-1011.64,0.00019726,2]
[346224402,1734779451209,-737.36,0.00019726,2]
[346224403,1734779451220,-2208.23,0.00019726,2]
[346224404,1734779451230,-500.0,0.00019726,2]
[346224405,1734779451239,-518.96,0.00019726,2]
[346224406,1734779451250,-742.67,0.00019726,2]
[346224407,1734779451259,-898.62,0.00019726,2]
[346224408,1734779451270,-500.0,0.00019726,2]
[346224409,1734779451279,-500.0,0.00019726,2]
[346224410,1734779451289,-1373.77,0.00019726,2]
[346224411,1734779451298,-4123.4,0.00019726,2]
[346224412,1734779451307,-500.0,0.00019726,2]
[346224413,1734779451317,-500.0,0.00019726,2]
[346224414,1734779451326,-789.5,0.00019726,2]
[346224415,1734779451335,-500.0,0.00019726,2]
[346224416,1734779451345,-952.86,0.00019726,2]
[346224417,1734779451355,-500.0,0.00019726,2]
[346224418,1734779451365,-500.0,0.00019726,2]
[346224419,1734779451375,-621.16,0.00019726,2]
[346224420,1734779451386,-7101.26,0.00019726,2]
[346224421,1734779451395,-500.0,0.00019726,2]
[346224422,1734779451405,-970.11,0.00019726,2]
[346224423,1734779451414,-687.72,0.00019726,2]
[346224424,1734779451424,-500.0,0.00019726,2]
[346224425,1734779451435,-503.249357,0.00019726,2]
[346224426,1734779451447,-505.14,0.00019726,2]
[346224427,1734779451456,-452.017468,0.00019778,2]
[346224428,1734779451466,-500.0,0.00019778,2]
[346224429,1734779451476,-188.51984843,0.00019778,2]
[346224430,1734779451485,-500.0,0.00019778,2]
[346224431,1734779451495,-1519.63,0.00019779,2]
[346224432,1734779451504,-11496.71643959,0.0001978,2]
[346224433,1734779451513,-1781.71858,0.0001978,2]
[346224434,1734779451522,-23325.04329137,0.00019878,2]
[346224435,1734779451531,-153.45027383,0.00019878,2]
[346224436,1734779451540,-161.07221604,0.00019878,2]
[346224437,1734779451549,-9923.44445453,0.000199,30]
[346224438,1734779451558,-500.0,0.00019973,2]
[346224439,1734779451567,-500.74282073,0.00019973,2]
[346224440,1734779451576,-272.51392135,0.00019973,2]
[346224441,1734779451585,-160.05456494,0.00019973,2]
[346224442,1734779451594,-160.05837928,0.00019973,2]
[346224443,1734779451603,-500.0,0.00019973,2]
[346224444,1734779451612,-160.05800611,0.00019973,2]
[346224445,1734779451621,-500.0,0.00019973,2]
[346224446,1734779451630,-206.60406073,0.00019973,2]
[346224447,1734779451639,-500.0,0.00019977,2]
[346224448,1734779451648,-500.0,0.00019977,2]
[346224449,1734779451657,-462.37782948,0.00019978,3]
[346224450,1734779451671,-1120.07727721,0.00019978,3]
[346224451,1734779451682,-3814.79493391,0.00019978,3]
[346224452,1734779451694,-2753.2053238,0.00019978,3]
[346224453,1734779487756,450.0,0.00013,2]
[346224454,1734779488755,10000.0,0.00018,2]
[346224455,1734779489115,500.0,0.00015,2]
[346224456,1734779490203,550.0,0.00017,2]
[346224457,1734779515317,1000.0,0.00020222,120]
[346224458,1734779557017,3872.62,0.00018,2]
[346224459,1734779578153,204.0,0.0001788,2]
[346224460,1734779578451,204.0,0.0001749,2]
[346224461,1734779579000,204.0,0.000171,2]
[346224462,1734779579087,204.0,0.0001671,2]
[346224463,1734779906846,606.8,0.0001661,2]
[346224464,1734780004410,3002.38303155,0.00019,30]
[346224465,1734780055357,205.57,0.00010137,2]
[346224469,1734780371325,42906.48688893,0.00018,2]
[346224470,1734780379032,2000.0,0.00018,7]
[346224471,1734780456039,537.16534,0.00017979,2]
[346224472,1734780473657,104784.6945226,0.00013,2]
[346224506,1734780632049,-638.44358573,0.0001807,2]
[346224508,1734780632059,-213.67,0.00018169,2]
[346224509,1734780632069,-221.05709915,0.0001817,2]
[346224510,1734780632077,-250.0,0.00018263,2]
[346224511,1734780632087,-1000.0,0.00018267,2]
[346224512,1734780632096,-204.0,0.0001827,2]
[346224513,1734780632106,-1223.15,0.00018295,2]
[346224514,1734780632115,-851.30893471,0.00018299,2]
[346224515,1734780632125,-250.0,0.0001843,2]
[346224516,1734780632137,-1240.75,0.00018484,2]
[346224517,1734780632147,-177.47,0.00018631,2]
[346224518,1734780632156,-204.0,0.0001866,2]
[346224519,1734780632166,-1244.35,0.00018668,2]
[346224520,1734780632175,-6289.15,0.00018761,2]
[346224521,1734780632185,-165.19,0.00018767,2]
[346224522,1734780632195,-606.8,0.00018874,2]
[346224523,1734780632204,-1827.0,0.00018904,2]
[346224524,1734780632214,-600.0,0.00019,2]
[346224525,1734780632224,-204.0,0.0001904,2]
[346224526,1734780632233,-6829.45503923,0.00019129,2]
[346224527,1734780632243,-577.77166584,0.00019178,2]
[346224528,1734780632252,-500.0,0.00019178,2]
[346224529,1734780632262,-716.89,0.00019178,2]
[346224530,1734780632271,-500.0,0.00019178,2]
[346224531,1734780632281,-184.51749913,0.00019178,2]
[346224532,1734780632291,-500.0,0.00019178,2]
[346224533,1734780632300,-637.23719951,0.00019178,2]
[346224534,1734780632310,-429.05092527,0.00019178,2]
[346224535,1734780632320,-500.0,0.00019178,2]
[346224536,1734780632330,-500.0,0.00019178,2]
[346224537,1734780632339,-500.0,0.00019178,2]
[346224538,1734780632349,-500.0,0.00019178,2]
[346224539,1734780632359,-500.0,0.00019178,2]
[346224540,1734780632368,-500.0,0.00019178,2]
[346224541,1734780632378,-500.0,0.00019178,2]
[346224542,1734780632389,-545.24,0.00019178,2]
[346224543,1734780632399,-500.0,0.00019178,2]
[346224544,1734780632409,-500.0,0.00019178,2]
[346224545,1734780632419,-638.49,0.00019178,2]
[346224546,1734780632429,-500.0,0.00019178,2]
[346224547,1734780632438,-500.0,0.00019178,2]
[346224548,1734780632447,-221.89630623,0.00019178,2]
[346224549,1734780632457,-500.0,0.00019178,2]
[346224550,1734780632467,-500.0,0.00019178,2]
[346224551,1734780632476,-500.0,0.00019178,2]
[346224552,1734780632485,-500.0,0.00019178,2]
[346224553,1734780632495,-500.0,0.00019178,2]
[346224554,1734780632505,-500.0,0.00019178,2]
[346224555,1734780632515,-500.0,0.00019178,2]
[346224556,1734780632525,-518.01,0.00019178,2]
[346224557,1734780632534,-500.0,0.00019178,2]
[346224558,1734780632544,-500.0,0.00019178,2]
[346224559,1734780632555,-500.0,0.00019178,2]
[346224560,1734780632564,-500.0,0.00019178,2]
[346224561,1734780632574,-639.7,0.00019178,2]
[346224562,1734780632583,-500.0,0.00019178,2]
[346224563,1734780632594,-500.0,0.00019178,2]
[346224564,1734780632603,-500.0,0.00019178,2]
[346224565,1734780632613,-500.0,0.00019178,2]
[346224566,1734780632622,-500.0,0.00019178,2]
[346224567,1734780632632,-500.0,0.00019178,2]
[346224568,1734780632642,-500.0,0.00019178,2]
[346224569,1734780632651,-500.0,0.00019178,2]
[346224570,1734780632661,-500.0,0.00019178,2]
[346224571,1734780632670,-500.0,0.00019178,2]
[346224572,1734780632679,-500.0,0.00019178,2]
[346224573,1734780632689,-500.0,0.00019178,2]
[346224574,1734780632698,-500.0,0.00019178,2]
[346224575,1734780632708,-500.0,0.00019178,2]
[346224576,1734780632718,-500.0,0.00019178,2]
[346224577,1734780632728,-500.0,0.00019178,2]
[346224578,1734780632738,-500.0,0.00019178,2]
[346224579,1734780632747,-500.0,0.00019178,2]
[346224580,1734780632757,-500.0,0.00019178,2]
[346224581,1734780632767,-500.0,0.00019178,2]
[346224582,1734780632776,-500.0,0.00019178,2]
[346224583,1734780632786,-1968.79,0.00019178,2]
[346224584,1734780632796,-500.0,0.00019178,2]
[346224585,1734780632806,-500.0,0.00019178,2]
[346224586,1734780632815,-500.0,0.00019178,2]
[346224587,1734780632825,-500.0,0.00019178,2]
[346224588,1734780632834,-500.0,0.00019178,2]
[346224589,1734780632844,-500.0,0.00019178,2]
[346224590,1734780632853,-500.0,0.00019178,2]
[346224591,1734780632862,-500.0,0.00019178,2]
[346224592,1734780632871,-500.0,0.00019178,2]
[346224593,1734780632883,-1344.7,0.00019178,2]
[346224594,1734780632892,-1056.0,0.00019213,2]
[346224595,1734780632902,-526.99763424,0.0001935,2]
[346224596,1734780632911,-5000.0,0.00019351,2]
[346224597,1734780632921,-191.98120253,0.00019351,2]
[346224598,1734780632930,-204.0,0.0001943,2]
[346224599,1734780632940,-501.37183265,0.0001945,2]
[346224600,1734780632949,-500.39283226,0.0001945,2]
[346224601,1734780632959,-501.39172779,0.0001945,2]
[346224602,1734780632969,-501.36116629,0.0001945,2]
[346224603,1734780632979,-504.80864333,0.0001945,2]
[346224604,1734780632988,-500.15818293,0.0001945,2]
[346224605,1734780632997,-150.94332578,0.0001945,2]
[346224606,1734780633007,-500.77260022,0.0001945,2]
[346224607,1734780633016,-221.65636441,0.0001945,2]
[346224608,1734780633026,-187.33512498,0.0001945,2]
[346224609,1734780633036,-500.0,0.0001945,2]
[346224610,1734780633046,-500.0,0.0001945,2]
[346224611,1734780633055,-500.0,0.0001945,2]
[346224612,1734780633065,-500.0,0.0001945,2]
[346224613,1734780633074,-500.0,0.0001945,2]
[346224614,1734780633084,-646.78896674,0.0001945,2]
[346224615,1734780633094,-500.0,0.0001945,2]
[346224616,1734780633103,-500.0,0.0001945,2]
[346224617,1734780633112,-342.99308666,0.0001945,2]
[346224618,1734780633122,-267.45698375,0.0001945,2]
[346224619,1734780633134,-264.71661844,0.0001945,2]
[346224620,1734780633144,-500.0,0.0001945,2]
[346224621,1734780633154,-500.0,0.0001945,2]
[346224622,1734780633163,-500.0,0.0001945,2]
[346224623,1734780633173,-500.0,0.0001945,2]
[346224624,1734780633183,-502.85150078,0.0001945,2]
[346224625,1734780633193,-500.0,0.0001945,2]
[346224626,1734780633203,-563.42557278,0.0001945,2]
[346224627,1734780633213,-500.0,0.0001945,2]
[346224628,1734780633223,-500.0,0.0001945,2]
[346224629,1734780633234,-500.0,0.0001945,2]
[346224630,1734780633243,-500.0,0.0001945,2]
[346224631,1734780633253,-301.17921868,0.0001945,2]
[346224632,1734780633263,-500.0,0.0001945,2]
[346224633,1734780633272,-500.0,0.0001945,2]
[346224634,1734780633282,-500.0,0.0001945,2]
[346224635,1734780633291,-500.0,0.0001945,2]
[346224636,1734780633301,-500.0,0.0001945,2]
[346224637,1734780633311,-500.0,0.0001945,2]
[346224638,1734780633320,-500.0,0.0001945,2]
[346224639,1734780633330,-500.0,0.0001945,2]
[346224640,1734780633340,-500.0,0.0001945,2]
[346224641,1734780633350,-500.0,0.0001945,2]
[346224642,1734780633360,-500.0,0.0001945,2]
[346224643,1734780633369,-500.0,0.0001945,2]
[346224644,1734780633379,-500.0,0.0001945,2]
[346224645,1734780633394,-500.0,0.0001945,2]
[346224646,1734780633404,-500.0,0.0001945,2]
[346224647,1734780633414,-500.0,0.0001945,2]
[346224648,1734780633424,-500.0,0.0001945,2]
[346224649,1734780633434,-500.0,0.0001945,2]
[346224650,1734780633444,-500.0,0.0001945,2]
[346224651,1734780633454,-532.53646139,0.0001945,2]
[346224652,1734780633463,-500.0,0.0001945,2]
[346224653,1734780633473,-500.0,0.0001945,2]
[346224654,1734780633482,-500.0,0.0001945,2]
[346224655,1734780633492,-500.0,0.0001945,2]
[346224656,1734780633502,-500.0,0.0001945,2]
[346224657,1734780633512,-500.0,0.0001945,2]
[346224658,1734780633524,-543.51,0.0001945,2]
[346224659,1734780633533,-220.506156,0.0001945,2]
[346224660,1734780633543,-2.63654257,0.0001945,2]
[346224661,1734780633558,-1014.03345743,0.0001945,2]
[346224662,1734780633568,-515.80738523,0.0001945,2]
[346224663,1734780633578,-500.0,0.0001945,2]
[346224664,1734780633589,-500.0,0.0001945,2]
[346224665,1734780633599,-966.89,0.0001945,2]
[346224666,1734780633608,-622.62,0.0001945,2]
[346224667,1734780633618,-500.0,0.0001945,2]
[346224668,1734780633628,-157.564533,0.0001945,2]
[346224669,1734780633644,-176.765388,0.0001945,2]
[346224670,1734780633655,-152.502649,0.0001945,2]
[346224671,1734780633664,-500.0,0.0001945,2]
[346224672,1734780633674,-500.0,0.0001945,2]
[346224673,1734780633683,-500.0,0.0001945,2]
[346224674,1734780633693,-719.61,0.0001945,2]
[346224675,1734780633703,-500.0,0.0001945,2]
[346224676,1734780633713,-500.0,0.0001945,2]
[346224677,1734780633723,-530.74,0.0001945,2]
[346224678,1734780633733,-500.0,0.0001945,2]
[346224679,1734780633743,-500.0,0.0001945,2]
[346224680,1734780633753,-839.94,0.0001945,2]
[346224681,1734780633763,-500.0,0.0001945,2]
[346224682,1734780633773,-500.0,0.0001945,2]
[346224683,1734780633783,-500.0,0.0001945,2]
[346224684,1734780633792,-586.52,0.0001945,2]
[346224685,1734780633802,-500.0,0.0001945,2]
[346224686,1734780633811,-500.0,0.0001945,2]
[346224687,1734780633821,-723.38,0.0001945,2]
[346224688,1734780633831,-1123.15,0.0001945,2]
[346224689,1734780633840,-635.54,0.0001945,2]
[346224690,1734780633849,-500.0,0.0001945,2]
[346224691,1734780633859,-624.37,0.0001945,2]
[346224692,1734780633869,-2918.51,0.0001945,2]
[346224693,1734780633878,-500.0,0.0001945,2]
[346224694,1734780633891,-500.0,0.0001945,2]
[346224695,1734780633901,-500.0,0.0001945,2]
[346224696,1734780633910,-795.2,0.0001945,2]
[346224697,1734780633919,-596.12,0.0001945,2]
[346224698,1734780633930,-1595.92,0.0001945,2]
[346224699,1734780633940,-738.38,0.0001945,2]
[346224700,1734780633949,-6488.99,0.0001945,2]
[346224701,1734780633959,-500.0,0.0001945,2]
[346224702,1734780633968,-500.0,0.0001945,2]
[346224703,1734780633977,-912.76,0.0001945,2]
[346224704,1734780633987,-726.69,0.0001945,2]
[346224705,1734780633997,-500.0,0.0001945,2]
[346224706,1734780634007,-885.19,0.0001945,2]
[346224707,1734780634016,-1916.93,0.0001945,2]
[346224708,1734780634026,-548.44,0.0001945,2]
[346224709,1734780634035,-649.84,0.0001945,2]
[346224710,1734780634045,-1953.04,0.0001945,2]
[346224711,1734780634055,-1092.53,0.0001945,2]
[346224712,1734780634064,-559.34,0.0001945,2]
[346224713,1734780634074,-1202.05,0.0001945,2]
[346224714,1734780634084,-500.0,0.0001945,2]
[346224715,1734780634093,-1609.32,0.0001945,2]
[346224716,1734780634103,-500.0,0.0001945,2]
[346224717,1734780634112,-645.19,0.0001945,2]
[346224718,1734780634122,-500.0,0.0001945,2]
[346224719,1734780634131,-3607.97,0.0001945,2]
[346224720,1734780634142,-690.81,0.0001945,2]
[346224721,1734780634152,-1156.32,0.0001945,2]
[346224722,1734780634161,-847.75,0.0001945,2]
[346224723,1734780634170,-6213.6,0.0001945,2]
[346224724,1734780634180,-848.85,0.0001945,2]
[346224725,1734780634189,-500.0,0.0001945,2]
[346224726,1734780634198,-603.52631419,0.0001945,2]
[346224727,1734780634214,-606.1999975,0.0001945,2]
[346224728,1734780634237,-1240.0000009,0.0001945,2]
[346224729,1734780634293,-1567.44368741,0.0001945,2]
[346224730,1734780634303,-969.46605499,0.0001945,2]
[346224731,1734780634315,-387.28394501,0.0001945,2]
[346224732,1734780634324,-500.0,0.0001945,2]
[346224733,1734780634334,-500.0,0.0001945,2]
[346224734,1734780634343,-432.68005566,0.0001945,2]
[346224735,1734780634359,-67.31994434,0.0001945,2]
[346224736,1734780634368,-469.84539548,0.00019451,2]
[346224737,1734780634393,-225.32460452,0.00019451,2]
[346224738,1734780634402,-409.98355645,0.00019451,2]
[346224739,1734780634412,-170.3087998,0.00019451,2]
[346224740,1734780634423,-329.6912002,0.00019451,2]
[346224741,1734780634433,-500.0,0.00019451,2]
[346224742,1734780634442,-151.2887998,0.00019451,2]
[346224744,1734780637900,-526.99763423,0.00019409,2]
[346224745,1734780637910,-500.0,0.0001945,2]
[346224746,1734780637919,-500.0,0.0001945,2]
[346224747,1734780637928,-601.75,0.0001945,2]
[346224748,1734780637938,-348.7112002,0.00019451,2]
[346224749,1734780637947,-500.0,0.00019451,2]
[346224750,1734780637956,-500.0,0.00019451,2]
[346224751,1734780637965,-500.0,0.00019451,2]
[346224752,1734780637974,-500.0,0.00019451,2]
[346224753,1734780637983,-518.2662519,0.00019451,2]
[346224754,1734780637992,-500.0,0.00019451,2]
[346224755,1734780638001,-375.78220057,0.00019451,2]
[346224756,1734780638011,-500.0,0.00019451,2]
[346224757,1734780638020,-500.0,0.00019451,2]
[346224758,1734780638029,-500.0,0.00019451,2]
[346224759,1734780638038,-500.0,0.00019451,2]
[346224760,1734780638047,-202.19942097,0.00019451,2]
[346224761,1734780638056,-500.0,0.00019451,2]
[346224762,1734780638066,-500.0,0.00019451,2]
[346224763,1734780638075,-500.0,0.00019451,2]
[346224764,1734780638084,-500.0,0.00019451,2]
[346224765,1734780638094,-500.0,0.00019451,2]
[346224766,1734780638103,-500.0,0.00019451,2]
[346224767,1734780638112,-500.0,0.00019451,2]
[346224768,1734780638121,-500.0,0.00019451,2]
[346224769,1734780638130,-500.0,0.00019451,2]
[346224770,1734780638142,-500.0,0.00019451,2]
[346224771,1734780638151,-500.0,0.00019451,2]
[346224772,1734780638160,-500.0,0.00019451,2]
[346224773,1734780638169,-500.0,0.00019451,2]
[346224774,1734780638178,-500.0,0.00019451,2]
[346224775,1734780638187,-500.0,0.00019451,2]
[346224776,1734780638196,-564.64046028,0.00019451,2]
[346224777,1734780638205,-500.0,0.00019451,2]
[346224778,1734780638215,-500.0,0.00019451,2]
[346224779,1734780638224,-445.06680575,0.00019451,2]
[346224780,1734780638240,-54.93319425,0.00019451,2]
[346224781,1734780638249,-500.0,0.00019451,2]
[346224782,1734780638258,-500.0,0.00019451,2]
[346224783,1734780638267,-500.0,0.00019451,2]
[346224784,1734780638277,-437.01096088,0.00019451,2]
[346224785,1734780638287,-500.0,0.00019451,2]
[346224786,1734780638296,-500.0,0.00019451,2]
[346224787,1734780638305,-500.0,0.00019451,2]
[346224788,1734780638315,-500.0,0.00019451,2]
[346224789,1734780638324,-504.19159421,0.00019451,2]
[346224790,1734780638333,-224.81073172,0.00019451,2]
[346224791,1734780638343,-500.0,0.00019451,2]
[346224792,1734780638353,-500.0,0.00019451,2]
[346224793,1734780638362,-501.74705291,0.00019451,2]
[346224794,1734780638371,-500.0,0.00019451,2]
[346224795,1734780638381,-500.0,0.00019451,2]
[346224797,1734780638392,-500.0,0.00019451,2]
[346224799,1734780638401,-500.0,0.00019451,2]
[346224801,1734780638410,-500.0,0.00019451,2]
[346224803,1734780638420,-503.0314234,0.00019451,2]
[346224805,1734780638429,-500.0,0.00019451,2]
[346224807,1734780638439,-500.0,0.00019451,2]
[346224809,1734780638448,-500.0,0.00019451,2]
[346224811,1734780638458,-250.42655516,0.00019451,2]
[346224813,1734780638468,-500.0,0.00019451,2]
[346224815,1734780638478,-500.0,0.00019451,2]
[346224817,1734780638488,-500.0,0.00019451,2]
[346224819,1734780638498,-500.0,0.00019451,2]
[346224821,1734780638509,-500.0,0.00019451,2]
[346224823,1734780638520,-500.0,0.00019451,2]
[346224825,1734780638530,-500.0,0.00019451,2]
[346224827,1734780638540,-222.33259226,0.00019451,2]
[346224830,1734780638551,-500.0,0.00019451,2]
[346224832,1734780638561,-500.0,0.00019451,2]
[346224833,1734780638571,-500.0,0.00019451,2]
[346224835,1734780638581,-500.0,0.00019451,2]
[346224837,1734780638592,-500.0,0.00019451,2]
[346224840,1734780638602,-500.0,0.00019451,2]
[346224842,1734780638612,-500.0,0.00019451,2]
[346224843,1734780638622,-500.0,0.00019451,2]
[346224845,1734780638631,-500.0,0.00019451,2]
[346224847,1734780638643,-500.0,0.00019451,2]
[346224849,1734780638653,-500.0,0.00019451,2]
[346224852,1734780638663,-500.0,0.00019451,2]
[346224854,1734780638672,-503.89261592,0.00019451,2]
[346224856,1734780638682,-500.0,0.00019451,2]
[346224858,1734780638692,-500.0,0.00019451,2]
[346224860,1734780638703,-500.0,0.00019451,2]
[346224862,1734780638712,-500.0,0.00019451,2]
[346224864,1734780638722,-500.0,0.00019451,2]
[346224866,1734780638731,-500.0,0.00019451,2]
[346224868,1734780638741,-500.0,0.00019451,2]
[346224870,1734780638750,-500.0,0.00019451,2]
[346224871,1734780638760,-500.0,0.00019451,2]
[346224872,1734780638771,-500.0,0.00019451,2]
[346224874,1734780638780,-500.0,0.00019451,2]
[346224875,1734780638790,-500.0,0.00019451,2]
[346224877,1734780638799,-500.0,0.00019451,2]
[346224878,1734780638808,-700.0,0.00019451,2]
[346224879,1734780638819,-500.0,0.00019451,2]
[346224880,1734780638828,-500.0,0.00019451,2]
[346224881,1734780638838,-500.0,0.00019451,2]
[346224882,1734780638847,-500.0,0.00019451,2]
[346224883,1734780638858,-500.0,0.00019451,2]
[346224884,1734780638867,-500.0,0.00019451,2]
[346224885,1734780638877,-506.38465763,0.00019451,2]
[346224886,1734780638889,-500.0,0.00019451,2]
[346224887,1734780638899,-637.80318283,0.00019451,2]
[346224888,1734780638909,-507.44987645,0.00019451,2]
[346224889,1734780638919,-500.0,0.00019451,2]
[346224890,1734780638928,-500.0,0.00019451,2]
[346224891,1734780638937,-500.0,0.00019451,2]
[346224892,1734780638947,-504.00315508,0.00019451,2]
[346224893,1734780638956,-500.0,0.00019451,2]
[346224894,1734780638967,-500.0,0.00019451,2]
[346224895,1734780638977,-500.0,0.00019451,2]
[346224896,1734780638986,-503.34590914,0.00019451,2]
[346224897,1734780638995,-500.0,0.00019451,2]
[346224898,1734780639005,-252.31008618,0.00019451,2]
[346224899,1734780639014,-500.0,0.00019451,2]
[346224900,1734780639024,-500.0,0.00019451,2]